Cogmind - Beta 12 @@@ ROGUE MODE // 2023.10.25 @ 22:26:23 Player: FrostySpirit Result: Destroyed by G-34 Mercenary with Small Laser Performance ------------- Evolutions (1) 500 Regions Visited (3) 600 Robots Destroyed (28) 140 Value Destroyed (679) 679 Prototype IDs (0) 0 Alien Tech Used (0) 0 Bonus (0) 0 TOTAL SCORE: 1919 Bonus ------- None Cogmind --------- Core Integrity 0/400 Matter 260/300 Energy 22/100 System Corruption 0% Temperature Cool (36) Movement Flying (274) Ox3 Location -9/Materials Parts ------- > --- POWER (1) -------- (None) > --- PROPULSION (4) --- Flight Unit Flight Unit Flight Unit > --- UTILITY (2) ------ High-capacity Storage Unit > --- WEAPON (2) ------- (None) > --- INVENTORY (20) --- Light Ion Engine Aluminum Leg Flight Unit Huge Storage Unit Signal Interpreter Seismic Detector Trap Extractor (0/4) Peak State ------------ > --- POWER ------------ Light Nuclear Core > --- PROPULSION ------- Aluminum Leg Aluminum Leg Aluminum Leg Aluminum Leg > --- UTILITY ---------- High-capacity Storage Unit Utility Shielding > --- WEAPON ----------- Beam Rifle Beam Rifle > --- INVENTORY -------- Light Ion Engine Flight Unit Flight Unit Flight Unit Flight Unit Huge Storage Unit Signal Interpreter Seismic Detector Trap Extractor Spread Laser [Rating: 14] Favorites ----------- Power Ion Engine Engine Ion Engine Power Core Light Nuclear Core Propulsion Aluminum Leg Treads Light Treads Leg Aluminum Leg Flight Unit Flight Unit Utility Small Storage Unit Device Terrain Scanner Storage Small Storage Unit Protection Light Armor Plating Weapon Beam Rifle Energy Gun Beam Rifle Ballistic Gun Assault Rifle Build | -11 -10 -10 -9 ------- Run | Jun Mat Min Mat Slots Evolved 2 | . . . 2 Power . | . . . . Propulsion 2 | . . . 2 Utility . | . . . . Weapon . | . . . . Parts Attached 29 | 6 2 . 21 Power 4 | 1 1 . 2 Engine 3 | 1 1 . 1 Core 1 | . . . 1 Reactor . | . . . . Propulsion 14 | 2 . . 12 Treads 4 | . . . 4 Leg 7 | 2 . . 5 Wheel . | . . . . Hover . | . . . . Flight 3 | . . . 3 Utility 5 | 1 1 . 3 Device 1 | . 1 . . Storage 2 | 1 . . 1 Processor . | . . . . Hackware . | . . . . Protection 2 | . . . 2 Artifact . | . . . . Weapon 6 | 2 . . 4 Energy Gun 5 | 1 . . 4 Energy Cannon . | . . . . Ballistic Gun 1 | 1 . . . Ballistic Cannon . | . . . . Launcher . | . . . . Special Weapon . | . . . . Impact Weapon . | . . . . Slashing Weapon . | . . . . Piercing Weapon . | . . . . Special Melee Weapon . | . . . . Unidentified Prototypes . | . . . . Parts Lost 16 | . . . 16 Power 3 | . . . 3 Propulsion 7 | . . . 7 Utility 3 | . . . 3 Weapon 3 | . . . 3 Highest Loss Streak 8 | . . . 8 To Critical Strikes . | . . . . Average Slot Usage (%) 95 | . 98 100 93 Engine 10 | . 14 14 7 Core 1 | . . . 1 Treads 13 | . . . 21 Leg 22 | . 28 28 19 Device 5 | . 12 14 1 Storage 12 | . 14 14 11 Protection 5 | . . . 8 Energy Gun 17 | . 14 14 18 Ballistic Gun 6 | . 14 14 2 Naked Turns . | . . . . Heaviest Build 54 | 14 15 15 54 Greatest Support 60 | 20 20 20 60 Greatest Overweight (x) 15 | 4 . . 15 Average Overweight (x) . | . . . . Largest Inventory Capacity 20 | 8 8 8 20 Average Capacity 12 | 7 8 8 15 Most Carried 12 | 3 8 8 12 Average Carried 6 | 1 5 8 8 Final Capacity 20 | 8 8 8 20 Final Carried 8 | 3 8 8 7 Class Distribution -------------------- 58% | Mutant 41% | Scavenger-Mutant Dominant Class ---------------- Mutant | -10/Materials Mutant | -10/Mines Scavenger-Mutant | -9/Materials Resources | -11 -10 -10 -9 ----------- Run | Jun Mat Min Mat Matter Collected 666 | 194 103 28 341 Remotely . | . . . . Salvage Created 923 | . 125 47 751 Parts 61 | . 7 7 47 Haulers Intercepted . | . . . . Recyclers Shooed 3 | . . 1 2 Parts Field Recycled . | . . . . Retrieved Matter . | . . . . Parts Self-Destructed . | . . . . Prevented . | . . . . Kills | -11 -10 -10 -9 ------- Run | Jun Mat Min Mat Combat Hostiles Destroyed 23 | . 2 3 18 Guns 23 | . 2 3 18 Classes Destroyed 7 | . 2 1 4 Worker 1 | . 1 . . Builder 1 | . . . 1 Recycler 2 | . . . 2 Watcher 1 | . . . 1 Swarmer 9 | . . 3 6 Grunt 11 | . 2 . 9 Sentry 3 | . . . 3 Best Kill Streak 7 | . 2 3 7 Combat Bots Only 5 | . 1 3 5 Max Kills in Single Turn 2 | . 1 1 2 Gunslinging 1 | . . . 1 Exploded . | . . . . Melee . | . . . . Uniques/NPCs Destroyed . | . . . . Combat | -11 -10 -10 -9 -------- Run | Jun Mat Min Mat Damage Taken 2227 | . 152 118 1957 Core 470 | . 22 38 410 Absorbed by Shields . | . . . . Redirected to Shielding 34 | . . . 34 Core Remaining (%) 88 | 100 . 76 . Volleys Fired 73 | . 10 6 57 Largest 2 | . 2 2 2 Hottest 112 | . 60 60 112 Shots Fired 136 | . 20 12 104 Gun 136 | . 20 12 104 Cannon . | . . . . Launcher . | . . . . Special . | . . . . Kinetic 27 | . 10 6 11 Thermal 91 | . . . 91 Explosive . | . . . . Electromagnetic 18 | . 10 6 2 Robot Hit Streak 15 | . 2 2 15 Robot Miss Streak 9 | . 2 4 9 Penetration Max . | . . . . Secondary Targets 7 | . . . 7 Max Gunslinging Chain 1 | . . . 1 Shots Hit Robots 85 | . 11 4 70 Core Hits 56 | . 6 3 47 Critical Kills . | . . . . Critical Parts Destroyed 1 | . . 1 . Critical Strikes 4 | . . 1 3 Burn 2 | . . . 2 Destroy 1 | . . 1 . Corrupt 1 | . . . 1 Melee Attacks . | . . . . Impact . | . . . . Slashing . | . . . . Piercing . | . . . . Sneak Attacks . | . . . . Combat Hostiles . | . . . . Follow-up Attacks . | . . . . Damage Inflicted 1190 | . 142 75 973 Guns 1190 | . 142 75 973 Cannons . | . . . . Explosions . | . . . . Melee . | . . . . Ramming . | . . . . Kinetic 250 | . 89 41 120 Thermal 831 | . . . 831 Explosive . | . . . . Electromagnetic 109 | . 53 34 22 Impact . | . . . . Slashing . | . . . . Piercing . | . . . . Highest Corruption . | . . . . Average Corruption . | . . . . Corruption Purged . | . . . . Corruption Blocked . | . . . . Overload Shots . | . . . . Overflow Damage . | . . . . Projectiles . | . . . . Explosions . | . . . . Melee . | . . . . Knockbacks . | . . . . Impact . | . . . . Kinetic . | . . . . Secondary . | . . . . Self-Inflicted Damage . | . . . . Shots . | . . . . Rammed 2 | . . . 2 Targets Rammed 3 | . 1 . 2 Kicked 1 | . 1 . . Crushed . | . . . . Highest Temperature 637 | . 24 . 637 Average Temperature 164 | . 14 . 179 Received Heat Transfer 912 | . 90 . 822 Effects 16 | . . . 16 Shutdowns 2 | . . . 2 Energy Bleed 3 | . . . 3 Matter Decay 3 | . . . 3 Short Circuit 2 | . . . 2 Damage (minor) 4 | . . . 4 Damage (major) 2 | . . . 2 Siege Activations . | . . . . Robots Corrupted . | . . . . Combat Hostiles . | . . . . Parts Fried . | . . . . Impact Corruptions . | . . . . Robots Melted . | . . . . Combat Hostiles . | . . . . Parts Melted 1 | . . . 1 Heat Transferred 2000 | . . . 2000 Parts Sabotaged . | . . . . Parts Stolen . | . . . . Parts Stripped . | . . . . Power Chain Reactions . | . . . . Missiles Intercepted . | . . . . Alert | -11 -10 -10 -9 ------- Run | Jun Mat Min Mat Peak Influence 387 | . 112 113 387 Initial 43 | . . 43 43 Average 123 | . 28 69 187 Maximum Alert Level 1 | . . . 1 Low Security (%) 68 | 100 100 100 46 Level 1 31 | . . . 53 Level 2 . | . . . . Level 3 . | . . . . Level 4 . | . . . . Level 5 . | . . . . High Security . | . . . . Max Security . | . . . . Squads Dispatched 2 | . 1 . 1 Investigation . | . . . . Extermination . | . . . . Reinforcement 2 | . 1 . 1 Assault . | . . . . Garrison . | . . . . Intercept . | . . . . Searches Triggered . | . . . . Construction Impeded . | . . . . Haulers Reinforced . | . . . . Active Scanning Responses . | . . . . Cargo Convoy Interrupts . | . . . . Stealth | -11 -10 -10 -9 --------- Run | Jun Mat Min Mat Distress Signals 3 | . . . 3 Communications Jammed . | . . . . Distress Signals . | . . . . Times Spotted 38 | . 5 3 30 Peak Tracking Total 7 | . 2 2 7 Tactical Retreats 3 | . 1 . 2 Traps | -11 -10 -10 -9 ------- Run | Jun Mat Min Mat Traps Triggered . | . . . . Indirectly . | . . . . Trap Hack Attempts . | . . . . Triggered . | . . . . Disarmed . | . . . . Reprogrammed . | . . . . Reused . | . . . . Traps Extracted . | . . . . Installed . | . . . . Triggered . | . . . . Machines | -11 -10 -10 -9 ---------- Run | Jun Mat Min Mat Machines Disabled 2 | . . . 2 Max in Single Turn 1 | . . . 1 Machines Repaired . | . . . . Machines Sabotaged . | . . . . Overloaded Fab Kills . | . . . . Hacking | -11 -10 -10 -9 --------- Run | Jun Mat Min Mat Machines Accessed 4 | . 3 . 1 Terminals 4 | . 3 . 1 Fabricators . | . . . . Repair Stations . | . . . . Recycling Units . | . . . . Scanalyzers . | . . . . Garrison Access . | . . . . Total Hacks 12 | . 9 . 3 Successful 7 | . 5 . 2 Failed 5 | . 4 . 1 Catastrophic . | . . . . Database Lockouts . | . . . . Manual . | . . . . Terminals 12 | . 9 . 3 Fabricators . | . . . . Repair Stations . | . . . . Recycling Units . | . . . . Scanalyzers . | . . . . Garrison Access . | . . . . Terminal Hacks 7 | . 5 . 2 Robot Analysis 1 | . 1 . . Branch Access Points 1 | . 1 . . Emergency Access Points 1 | . 1 . . Alert Level 1 | . . . 1 Dispatch Records 1 | . . . 1 Hauler Manifests 1 | . 1 . . Zone Layout 1 | . 1 . . Fabricator Hacks . | . . . . Repair Station Hacks . | . . . . Recycling Unit Hacks . | . . . . Scanalyzer . | . . . . Garrison Access Hacks . | . . . . Unauthorized Hacks . | . . . . Terminals . | . . . . Fabricators . | . . . . Repair Stations . | . . . . Recycling Units . | . . . . Scanalyzers . | . . . . Garrison Access . | . . . . Data Cores Recovered . | . . . . Used . | . . . . Hacking Detections 4 | . 3 . 1 Full Trace Events . | . . . . Feedback Events . | . . . . Feedback Blocked . | . . . . Robot Schematics Acquired . | . . . . Robots Built . | . . . . Authchips . | . . . . Time . | . . . . Total Robot Build Rating . | . . . . Part Schematics Acquired . | . . . . Parts Built . | . . . . Authchips . | . . . . Time . | . . . . Total Part Build Rating . | . . . . Parts Repaired . | . . . . Time . | . . . . Parts Recycled . | . . . . Recycled Matter . | . . . . Retrieved Matter . | . . . . Retrieved Components . | . . . . Parts Scanalyzed . | . . . . Part Schematics Acquired . | . . . . Parts Damaged . | . . . . Bothacking | -11 -10 -10 -9 ------------ Run | Jun Mat Min Mat Used RIF Installer . | . . . . Robots Hacked . | . . . . Non-combat . | . . . . Combat . | . . . . Robot Hacks Applied . | . . . . Relay Couplers Released . | . . . . Fabnet Peak Effective % . | . . . . Robots Rewired . | . . . . Allies Hacked . | . . . . Hacks Repelled . | . . . . Allies | -11 -10 -10 -9 -------- Run | Jun Mat Min Mat Total Allies . | . . . . Largest Group . | . . . . Highest-Rated Group . | . . . . Highest-Rated Ally . | . . . . Total Orders . | . . . . Ally Attacks . | . . . . Total Damage . | . . . . Kills . | . . . . Allies Corrupted . | . . . . Allies Melted . | . . . . Intel | -11 -10 -10 -9 ------- Run | Jun Mat Min Mat Robot Analysis Total 1 | . 1 . . Derelict Logs Recovered . | . . . . Drone Launches . | . . . . Drone Recoveries . | . . . . Exploration | -11 -10 -10 -9 ------------- Run | Jun Mat Min Mat Turns Passed 965 | 71 258 62 574 Spaces Moved 485 | 46 182 37 220 Core 12 | 11 . . 1 Treads 125 | . . . 125 Legs 348 | 35 182 37 94 Wheels . | . . . . Hover . | . . . . Flight . | . . . . Fastest Speed 50 | 50 120 120 120 Average Speed 139 | 129 120 120 161 Slowest Speed 800 | 250 120 120 800 Overloaded Moves . | . . . . Propulsion Burnouts . | . . . . Robots Hopped . | . . . . Cave-ins Triggered . | . . . . Exploration Rate (%) 16 | 4 22 9 29 Regions Visited 3 Branch Regions 1 Pre-discovered Areas . | . . . . Known Exits Taken 1 | . 1 . . Unknown Exits Taken 2 | 1 . 1 . Scrap Searched 1 | . . 1 . Spaces Dug . | . . . . Terrain Destroyed . | . . . . Melee . | . . . . Projectile . | . . . . AOE . | . . . . Terrain Rammed . | . . . . Walls Destroyed . | . . . . Machines Disabled . | . . . . Actions | -11 -10 -10 -9 --------- Run | Jun Mat Min Mat Total 629 | 54 201 42 332 Wait 18 | . 1 . 17 Move 482 | 45 181 36 220 Hop . | . . . . Pick Up 16 | 3 5 . 8 Fast Attach 17 | 6 1 . 10 Attach 9 | . . . 9 Detach . | . . . . Swap 3 | . 1 . 2 Drop 8 | . 1 . 7 Fire 73 | . 10 6 57 Melee . | . . . . Ram . | . . . . Kick 1 | . 1 . . Crush 2 | . . . 2 Escape Stasis . | . . . . Rewire . | . . . . Trap . | . . . . Miscellaneous . | . . . . Route ------- -11/Junkyard -10/Materials -10/Mines -9/Materials History --------- Turn | Location | Event 5 | -11/Junkyard | Discovered new exit (range 16) 72 | -11/Junkyard | Entered Materials 174 | -10/Materials | Identified exit to Mines 330 | -10/Materials | Entered Mines 338 | -10/Mines | Build established: Mutant 354 | -10/Mines | Discovered new exit (range 7) 392 | -10/Mines | Entered Materials 392 | -9/Materials | Evolved 2 slots: Propulsion x2 837 | -9/Materials | Lost 6 parts (2p3n1u) 915 | -9/Materials | Core integrity fell below 50% 950 | -9/Materials | Core integrity fell below 20% 966 | -9/Materials | Destroyed by G-34 Mercenary with Small Laser Last Messages --------------- 00948_ The unstable cave ceiling collapses. 00953_ K-01 Serf collects debris. 00954_ U-05 Engineer builds a Wall. 00955_ Aluminum Leg destroyed. 00955_ Critical hit (Burn: +37). 00955_ Spread Laser destroyed. 00956_ Overheating: Energy bleed (-10). 00956_ K-01 Serf collects debris. 00958_ Sml. Laser destroyed. 00958_ Critical hit (Burn: +37). 00958_ U-05 Engineer builds a Wall. 00959_ Acquired Lgt. Treads. 00960_ K-01 Serf collects debris. 00961_ Critical hit (Burn: +37). 00961_ Dropped Lgt. Treads. 00962_ U-05 Engineer lays Concrete. 00964_ U-05 Engineer builds a Wall. 00964_ K-01 Serf collects debris. 00965_ U-05 Engineer builds a Door. 00966_ U-05 Engineer lays Concrete. Map ----- +----------------------------------------------------+ | ?????????????????????????????????????????? | | ?????????????????????????????????????????? | | ?????????????????????????????????????????? | | ?????????????????????????????????????????? | | ?????????????????????????????????????????? | | ?????????????????????????????????????????? | | ?????????????????????????????????????????? | | ?????????????????????????????????????????? | | ?????????????????????????????????????????? | | ?????????????????????????????????????????? | | ???????????????????????????? ??????????? | | ???????????????????????????? #?????????? | | ???????????????????????????? #?????????? | | ???????# ??????????????????? #?????????? | | ???????# "???###?######????? #?????????? | | ???????# ???# #????# #?????????? | | ???????# ??# """ #????# #?????????? | | ????????# ## """ ]#????# #?????????? | | ????????# """ #????# #?????????? | | ????????# # #????# #?????????? | | ????????# #????# +?????????? | | ????????# #????# #?????????? | | ????????# o #????# #????? ???? | | ???????## u #???##= ##????+#??? | | ???????# %/########%% ##### #### | | ???????# *@%Yu | | ???????+ g k% #?? | | ???????# t a """" #?? | | ???????# ############## """" #?? | | ???????## ????????######### """" #?? | | ????????# ?????????# # #?? | | ????????# ??????????# # ### | | ????????#???????????# % # | | ????????????????????# [ + | | ????????????????????# # %%% | | ????????????????????# %#########+#### | | ????????????????????# !#????#% | | ????????????????????# #????# % "" | | ????????????????????# #????# Y" | | ????????????????????# #????# "" | | ????????????????????# #????# | | ????????????????????#########????#"" !%! | | ?????????????????????????????????#"""[ | | ?????????????????????????????????#"""% | | ?????????????????????????????????# %% | | ?????????????????????????????????####+#### | | ????????????????????????????????????#%#??? | | ????????????????????????????????????#%#??? | | ????????????????????????????????????# #??? | | ????????????????????????????????????#%#??? | +----------------------------------------------------+ Best States ------------- Heat Dissipation 28 Energy Generation 14 Energy Capacity 250 Matter Stores 300 Matter Capacity 300 Sight Range 16 Terrain Scan Range 14 Terrain Scan Density 10 Armor Coverage 150 Utility Shielding 33 Evasion (%) 55 Recoil Reduction 3 Item Schematics ----------------- None Robot Schematics ------------------ None Fabricated ------------ Nothing Alien Tech Used ----------------- None Achievements -------------- None Challenges ------------ None Game ------ Seed MissileGaussBeamcaster Manual? 0 Play Time 00:15:06 Cumulative 11.9 hours Start 2023.10.25 @ 22:11:28 End 2023.10.25 @ 22:26:23 Sessions 1 Manual Loads 0 Difficulty Rogue Special Mode None Game No. 21 Rogue 21 Adventurer 0 Explorer 0 Win Type - Total 0 Types 0/0/0/0/0/0/0/0/0 Lore% 6 Gallery% 20 Achievement% 16 Wizard Run 0 Options --------- ASCII 0 Keyboard 0 Movement Mouse Keybinds 0 Fullscreen 1 Font 18/TerminusBold Map View 76x50 Tactical HUD 1 Map Filters NONE Filters NONE Steam 1 RUN: 082ac384-b920-4b95-b2cd-066d823cc0d3